Cogmind - Beta 15 @@@ ROGUE MODE // 2025.10.16 @ 20:12:59 Player: Occam Result: Destroyed by GB-93V(g) with Beamcaster Performance ------------- Evolutions (0) 0 Regions Visited (5) 1000 Robots Destroyed (40) 200 Value Destroyed (706) 706 Prototype IDs (23) 460 Alien Tech Used (0) 0 Bonus (1164) 1164 TOTAL SCORE: 3530 Bonus ------- Follower Combat Kills 364 Registered with UFD 300 Met Optimus in HQ 500 Cogmind --------- Core Integrity 0/250 Matter 300/300 Energy 125/125 System Corruption 0% Temperature Cool (21) Movement Rolling (130) Ox2 Location -9/Scraptown Parts ------- > --- POWER (1) -------- Light Ion Engine > --- PROPULSION (2) --- Compact Wheel Compact Wheel > --- UTILITY (2) ------ Huge Storage Unit Authchip [Device] > --- WEAPON (2) ------- Compact Gauss Rifle Powered Hammer > --- INVENTORY (25) --- MA-1KR's Cyclogen VTOL Module VTOL Module Medium Storage Unit High-capacity Matter Pod (200) Structural Scanner Seismic Detector Hacking Suite System Shield Rainbow Chip Assault Rifle Grenade Launcher Datajack CPS Tube (2) Maul Deploy-a-Sentry Peak State ------------ > --- POWER ------------ Subdweller Power Source > --- PROPULSION ------- Light Treads Compact Wheel > --- UTILITY ---------- Huge Storage Unit Authchip [Device] > --- WEAPON ----------- Subdweller Beam Cannon Voltaic Drivehammer > --- INVENTORY -------- Ion Engine Light Ion Engine Subdweller Power Source Spiked Treads Compact Wheel Medium Storage Unit High-capacity Battery High-capacity Matter Pod Structural Scanner Subdweller Optics Seismic Detector Targeting Computer Rainbow Chip Particle Gun Subdweller Laser Assault Rifle Battle Rifle Battle Rifle Light Cannon Subdweller Shrapnel Launcher Datajack Mining Laser Large Botcube [Rating: 27] Favorites ----------- Power Light Ion Engine Engine Light Ion Engine Propulsion Compact Wheel Treads Light Treads Leg Aluminum Leg Wheel Compact Wheel Utility Huge Storage Unit Device V3-11A's Pendant Storage Huge Storage Unit Hackware Authchip [Device] Protection Makeshift Core Shielding Weapon Light Cannon Energy Gun Small Laser Energy Cannon Subdweller Beam Cannon Ballistic Gun Assault Rifle Ballistic Cannon Light Cannon Special Weapon Mining Laser Impact Weapon Powered Hammer Build | -11 -10 -10 -10 -9 -9 ------- Run | Yrd Mat Min Sub Rec Scr Slots Evolved . | . . . . . . Power . | . . . . . . Propulsion . | . . . . . . Utility . | . . . . . . Weapon . | . . . . . . Parts Attached 32 | 1 11 4 8 1 7 Power 4 | . . 1 2 . 1 Engine 4 | . . 1 2 . 1 Core . | . . . . . . Reactor . | . . . . . . Propulsion 9 | . 4 2 2 . 1 Treads 4 | . 3 1 . . . Leg . | . . . . . . Wheel 5 | . 1 1 2 . 1 Hover . | . . . . . . Flight . | . . . . . . Utility 7 | 1 3 . 2 . 1 Device 4 | 1 2 . 1 . . Storage 1 | . 1 . . . . Processor . | . . . . . . Hackware 1 | . . . . . 1 Protection 1 | . . . 1 . . Artifact . | . . . . . . Weapon 12 | . 4 1 2 1 4 Energy Gun 1 | . . . 1 . . Energy Cannon 1 | . . . . 1 . Ballistic Gun 2 | . . . . . 2 Ballistic Cannon 5 | . 4 . 1 . . Launcher . | . . . . . . Special Weapon 2 | . . 1 . . 1 Impact Weapon 1 | . . . . . 1 Slashing Weapon . | . . . . . . Piercing Weapon . | . . . . . . Special Melee Weapon . | . . . . . . Unidentified Prototypes 1 | . . . 1 . . Corrupted Parts 1 | . . . . . 1 System Corruption 1 | . . . . . 1 Parts Lost 8 | . 4 . 4 . . Power . | . . . . . . Propulsion 3 | . 1 . 2 . . Utility 1 | . 1 . . . . Weapon 4 | . 2 . 2 . . Highest Loss Streak 2 | . 2 . 2 . . To Critical Strikes . | . . . . . . Average Backups 20 | 6 16 24 23 23 18 Power 2 | 1 2 3 2 3 1 Propulsion 2 | 4 2 3 2 2 1 Utility 9 | . 6 8 10 10 8 Weapon 5 | 1 4 8 6 7 4 Tool/Special . | . . . . . . Unused Backups 37 | . 6 1 7 1 22 Power 2 | . . . . . 2 Propulsion 5 | . 2 . . . 3 Utility 16 | . 3 . 3 1 9 Weapon 11 | . . 1 4 . 6 Tool/Special 3 | . 1 . . . 2 Average Slot Usage (%) 96 | . 99 100 100 100 89 Engine 14 | . 14 14 14 14 14 Treads 12 | . 17 14 14 14 8 Wheel 15 | . 9 14 14 14 19 Device 9 | . 13 14 13 14 1 Storage 14 | . 14 14 14 14 14 Hackware 3 | . . . . . 7 Energy Gun 1 | . 10 . 1 . . Energy Cannon 3 | . . . . 9 8 Ballistic Gun 2 | . . . . . 5 Ballistic Cannon 13 | . 17 22 14 14 7 Special Weapon 4 | . . 5 11 4 . Peak Build Rating 27 | 7 9 10 16 16 27 Average Rating 12 | 6 8 9 11 15 14 On Entrance 10 | 6 7 9 10 15 16 Naked Turns . | . . . . . . Heaviest Build 97 | 14 92 92 92 97 97 Greatest Support 40 | 20 40 16 16 16 32 Greatest Overweight (x) 6 | . 5 5 5 6 6 Average Overweight (x) 4 | . 3 5 5 5 3 Largest Inventory Capacity 25 | 8 25 25 25 25 25 Average Capacity 24 | 8 21 25 25 25 25 Most Carried 25 | 6 25 25 25 25 25 Average Carried 21 | 6 16 24 24 25 19 Final Capacity 25 | 8 25 25 25 25 25 Final Carried 25 | 6 25 25 25 25 16 Class Distribution -------------------- 100% | Mutant Dominant Class ---------------- Mutant | -10/Materials Mutant | -10/Mines Mutant | -10/Subcaves Mutant | -9/Recycling Mutant | -9/Scraptown Resources | -11 -10 -10 -10 -9 -9 ----------- Run | Yrd Mat Min Sub Rec Scr Matter Collected 1349 | 210 528 290 211 26 84 Remotely . | . . . . . . Salvage Created 1109 | 114 608 95 117 175 . Parts 71 | 5 49 5 6 6 . Haulers Intercepted . | . . . . . . Recyclers Shooed 1 | . . 1 . . . Parts Field Recycled . | . . . . . . Retrieved Matter . | . . . . . . Parts Self-Destructed 20 | . . . 18 . 2 Prevented . | . . . . . . Kills | -11 -10 -10 -10 -9 -9 ------- Run | Yrd Mat Min Sub Rec Scr Combat Hostiles Destroyed 28 | . 21 3 4 . . Guns 5 | . 5 . . . . Cannons 23 | . 16 3 4 . . Classes Destroyed 10 | 2 6 . 2 . . Builder 2 | . 2 . . . . Tunneler 1 | 1 . . . . . Recycler 5 | 1 1 1 . 2 . Mechanic 1 | . 1 . . . . Operator 1 | . 1 . . . . Watcher 2 | . 2 . . . . Swarmer 16 | . 12 3 1 . . Grunt 10 | . 9 . 1 . . Sentry 1 | . . . 1 . . Subdweller 1 | . . . 1 . . Best Kill Streak 4 | 2 4 3 2 1 . Combat Bots Only 4 | . 4 3 2 . . Max Kills in Single Turn 2 | 1 2 1 1 1 . Gunslinging 1 | . 1 . . . . Exploded . | . . . . . . Melee . | . . . . . . Uniques/NPCs Destroyed . | . . . . . . Combat | -11 -10 -10 -10 -9 -9 -------- Run | Yrd Mat Min Sub Rec Scr Hostile Shots Fired 169 | . 106 10 29 . 24 Missed 41 | . 21 4 9 . 7 Hits 128 | . 85 6 20 . 17 Projectile 128 | . 85 6 20 . 17 AOE 1 | . 1 . . . . Damage Taken 1656 | . 886 55 428 . 287 Core 266 | . 103 . 32 . 131 Absorbed by Shields . | . . . . . . Core Remaining (%) 100 | 100 . . . . . Volleys Fired 151 | 3 56 13 73 5 1 Largest 2 | 2 2 2 2 2 1 Hottest 110 | 90 90 100 100 110 20 Shots Fired 236 | 6 110 22 87 10 1 Gun 42 | 6 34 . 1 . 1 Cannon 136 | . 76 21 29 10 . Launcher . | . . . . . . Special 58 | . . 1 57 . . Kinetic 132 | . 76 21 29 5 1 Thermal 104 | 6 34 1 58 5 . Explosive . | . . . . . . Electromagnetic . | . . . . . . Robot Hit Streak 7 | 2 7 4 5 5 . Robot Miss Streak 6 | 1 6 3 4 1 . Penetration Max . | . . . . . . Secondary Targets 1 | . 1 . . . . Max Gunslinging Chain 1 | . 1 . . . . Shots Hit Robots 96 | 4 60 10 16 6 . Core Hits 47 | 3 30 5 7 2 . Critical Kills . | . . . . . . Critical Parts Destroyed . | . . . . . . Critical Strikes 6 | . 5 . 1 . . Burn 1 | . 1 . . . . Blast 5 | . 4 . 1 . . Melee Attacks 6 | . . . . . 6 Impact 6 | . . . . . 6 Slashing . | . . . . . . Piercing . | . . . . . . Sneak Attacks . | . . . . . . Combat Hostiles . | . . . . . . Follow-up Attacks . | . . . . . . Damage Inflicted 1591 | 49 1005 194 200 143 . Guns 332 | 49 283 . . . . Cannons 1211 | . 722 194 152 143 . Explosions . | . . . . . . Melee . | . . . . . . Ramming . | . . . . . . Kinetic 1124 | . 722 194 152 56 . Thermal 467 | 49 283 . 48 87 . Explosive . | . . . . . . Electromagnetic . | . . . . . . Impact . | . . . . . . Slashing . | . . . . . . Piercing . | . . . . . . Highest Corruption 1 | . . . . . 1 Average Corruption 1 | . . . . . 1 Corruption Purged . | . . . . . . Corruption Blocked . | . . . . . . Effects 5 | . . . . . 5 Message Errors 1 | . . . . . 1 Matter Fused 1 | . . . . . 1 Heat Flow Errors 1 | . . . . . 1 Energy Discharges 1 | . . . . . 1 Data Loss (major) 1 | . . . . . 1 Overload Shots . | . . . . . . Overflow Damage 14 | . . . . 14 . Projectiles 14 | . . . . 14 . Explosions . | . . . . . . Melee . | . . . . . . Knockbacks 10 | . 4 3 2 1 . Impact . | . . . . . . Kinetic 10 | . 4 3 2 1 . Secondary . | . . . . . . Self-Inflicted Damage . | . . . . . . Shots . | . . . . . . Rammed . | . . . . . . Targets Rammed . | . . . . . . Kicked . | . . . . . . Crushed . | . . . . . . Highest Temperature 240 | 42 240 20 . 99 167 Average Temperature 57 | 20 63 12 . 39 92 Received Heat Transfer 375 | . 216 6 132 . 21 Siege Activations . | . . . . . . Martial Activations . | . . . . . . Shielding Activations . | . . . . . . Robots Disrupted . | . . . . . . Combat Hostiles . | . . . . . . Robots Corrupted . | . . . . . . Combat Hostiles . | . . . . . . Parts Fried . | . . . . . . Impact Corruptions . | . . . . . . Robots Melted . | . . . . . . Combat Hostiles . | . . . . . . Parts Melted 3 | 1 2 . . . . Heat Transferred 1189 | 136 842 . 100 111 . Parts Sabotaged . | . . . . . . Parts Stolen . | . . . . . . Parts Stripped . | . . . . . . Power Chain Reactions . | . . . . . . Alert | -11 -10 -10 -10 -9 -9 ------- Run | Yrd Mat Min Sub Rec Scr Maximum Alert Level 1 | . 1 . . . . Low Security (%) 94 | 100 87 100 . 100 . Level 1 5 | . 12 . . . . Level 2 . | . . . . . . Level 3 . | . . . . . . Level 4 . | . . . . . . Level 5 . | . . . . . . High Security . | . . . . . . Max Security . | . . . . . . Peak Influence 232 | 10 232 98 . 52 . Initial 61 | . . 61 . 26 . Average 49 | 2 99 15 . 12 . Influence Increases 1228 | 10 592 192 254 180 . Destroy 0b10 Robot/C 740 | . 420 140 180 . . Destroy 0b10 Robot/NC 60 | 10 35 5 . 10 . Destroy Leader 134 | . 94 30 10 . . Allied During Kill 50 | . . 16 34 . . Successful Hack 57 | . 40 . . 17 . Select Force Hacks 150 | . . . . 150 . Destroy Structure 7 | . 3 1 . 3 . Lose Combat Pursuer 30 | . . . 30 . . Influence Decreases 1228 | 10 435 263 284 236 . Entered New Map 172 | . . 96 46 30 . Time Decay 897 | 10 395 167 119 206 . Lost Part 50 | . 40 . 10 . . Lost Ally 109 | . . . 109 . . Squads Dispatched 6 | . 6 . . . . Investigation 5 | . 5 . . . . Extermination . | . . . . . . Reinforcement 1 | . 1 . . . . Assault . | . . . . . . Garrison . | . . . . . . Intercept . | . . . . . . Searches Triggered . | . . . . . . Construction Impeded . | . . . . . . Haulers Reinforced . | . . . . . . Active Scanning Responses . | . . . . . . Cargo Convoy Interrupts . | . . . . . . Stealth | -11 -10 -10 -10 -9 -9 --------- Run | Yrd Mat Min Sub Rec Scr Distress Signals 2 | . . 2 . . . Communications Jammed . | . . . . . . Distress Signals . | . . . . . . Times Spotted 58 | . 28 4 13 . 13 Peak Tracking Total 12 | . 4 2 2 . 12 Tactical Retreats 1 | . . . 1 . . Traps | -11 -10 -10 -10 -9 -9 ------- Run | Yrd Mat Min Sub Rec Scr Traps Triggered 7 | . 4 . 2 . 1 Indirectly . | . . . . . . Trap Hack Attempts . | . . . . . . Triggered . | . . . . . . Disarmed . | . . . . . . Reprogrammed . | . . . . . . Reused . | . . . . . . Traps Extracted . | . . . . . . Installed 1 | . . . . . 1 Triggered . | . . . . . . Most Traps Carried 1 | . . . . . 1 Machines | -11 -10 -10 -10 -9 -9 ---------- Run | Yrd Mat Min Sub Rec Scr Machines Disabled 6 | . . . 2 . 4 Max in Single Turn 1 | . . . 1 . 1 Machines Repaired . | . . . . . . Machines Dismantled . | . . . . . . Machines Sabotaged . | . . . . . . Overloaded Fab Kills . | . . . . . . Hacking | -11 -10 -10 -10 -9 -9 --------- Run | Yrd Mat Min Sub Rec Scr Machines Accessed 21 | . 7 . 2 10 2 Terminals 11 | . 6 . . 5 . Fabricators . | . . . . . . Repair Stations . | . . . . . . Recycling Units 6 | . 1 . . 5 . Scanalyzers . | . . . . . . Garrison Access . | . . . . . . Total Hacks 59 | . 27 . 7 20 5 Successful 37 | . 13 . 7 12 5 Failed 20 | . 13 . . 7 . Catastrophic . | . . . . . . Database Lockouts 2 | . 1 . . 1 . Manual 38 | . 20 . . 18 . Terminals 39 | . 25 . . 14 . Fabricators . | . . . . . . Repair Stations . | . . . . . . Recycling Units 8 | . 2 . . 6 . Scanalyzers . | . . . . . . Garrison Access . | . . . . . . Terminal Hacks 26 | . 9 . 7 5 5 Record 10 | . . . 6 . 4 Part Schematic 4 | . 1 . . 3 . Robot Analysis 3 | . 3 . . . . Prototype ID Bank 1 | . 1 . . . . Terminal Index 2 | . 1 . . 1 . Alert Level 1 | . . . . 1 . Locate Traps 2 | . 2 . . . . Hauler Manifests 1 | . 1 . . . . Proto ID Catalog 2 | . . . 1 . 1 Fabricator Hacks . | . . . . . . Repair Station Hacks . | . . . . . . Recycling Unit Hacks 1 | . 1 . . . . Report Inventory 1 | . 1 . . . . Scanalyzer . | . . . . . . Garrison Access Hacks . | . . . . . . Unauthorized Hacks 10 | . 3 . . 7 . Terminals 4 | . 2 . . 2 . Botnet 4 | . 2 . . 2 . Fabricators . | . . . . . . Repair Stations . | . . . . . . Recycling Units 6 | . 1 . . 5 . Recyclers 1 | . 1 . . . . Tunnel 5 | . . . . 5 . Scanalyzers . | . . . . . . Garrison Access . | . . . . . . Data Cores Recovered . | . . . . . . Used . | . . . . . . Hacking Detections 11 | . 6 . . 5 . Full Trace Events 5 | . 4 . . 1 . Feedback Events . | . . . . . . Feedback Blocked . | . . . . . . Robot Schematics Acquired . | . . . . . . Robots Built . | . . . . . . Authchips . | . . . . . . Time . | . . . . . . Total Robot Build Rating . | . . . . . . Part Schematics Acquired 4 | . 1 . . 3 . Parts Built . | . . . . . . Authchips . | . . . . . . Time . | . . . . . . Total Part Build Rating . | . . . . . . Parts Repaired . | . . . . . . Time . | . . . . . . Parts Recycled . | . . . . . . Recycled Matter . | . . . . . . Retrieved Matter . | . . . . . . Retrieved Components . | . . . . . . Parts Scanalyzed . | . . . . . . Part Schematics Acquired . | . . . . . . Parts Damaged . | . . . . . . Bothacking | -11 -10 -10 -10 -9 -9 ------------ Run | Yrd Mat Min Sub Rec Scr Used RIF Installer . | . . . . . . Robots Hacked . | . . . . . . Non-combat . | . . . . . . Combat . | . . . . . . Robot Hacks Applied . | . . . . . . Relay Couplers Released . | . . . . . . Fabnet Peak Effective % . | . . . . . . Robots Rewired . | . . . . . . Allies Hacked . | . . . . . . Hacks Repelled . | . . . . . . Allies | -11 -10 -10 -10 -9 -9 -------- Run | Yrd Mat Min Sub Rec Scr Total Allies 13 | . . 3 10 . . Largest Group 9 | . . 3 9 . . Highest-Rated Group 166 | . . 40 166 . . Highest-Rated Ally 19 | . . 16 19 . . Total Orders . | . . . . . . Ally Attacks 103 | . . 17 86 . . Total Damage 1492 | . . 174 1318 . . Kills 17 | . . 4 13 . . Allies Corrupted . | . . . . . . Allies Melted 3 | . . . . . 3 Intel | -11 -10 -10 -10 -9 -9 ------- Run | Yrd Mat Min Sub Rec Scr Active Infowar (turns) 2779 | 17 1384 1079 299 . . Structural 622 | . 463 159 . . . Seismic 2157 | 17 921 920 299 . . Robot Analysis Total 3 | . 3 . . . . Derelict Logs Recovered 6 | . . 1 1 . 4 Drone Launches . | . . . . . . Drone Recoveries . | . . . . . . Exploration | -11 -10 -10 -10 -9 -9 ------------- Run | Yrd Mat Min Sub Rec Scr Turns Passed 10586 | 31 1393 1079 3105 875 4103 Spaces Moved 5382 | 18 679 350 1575 462 2298 Core . | . . . . . . Treads 199 | . 181 . . . 18 Legs 18 | 18 . . . . . Wheels 5165 | . 498 350 1575 462 2280 Hover . | . . . . . . Flight . | . . . . . . Fastest Speed 120 | 120 160 175 175 175 130 Average Speed 169 | 120 171 175 175 184 161 Slowest Speed 480 | 120 175 175 175 190 480 Overloaded Moves . | . . . . . . Propulsion Burnouts . | . . . . . . Robots Hopped 1 | . . . 1 . . Potential Cave-ins . | . . . . . . Cave-ins Triggered . | . . . . . . Exploration Rate (%) 68 | 3 95 66 81 76 88 Regions Visited 5 Branch Regions 4 Pre-discovered Areas 7 | . . 1 . 5 1 Known Exits Taken . | . . . . . . Unknown Exits Taken 5 | 1 1 1 1 1 . Scrap Searched 17 | . . 1 6 . 10 Spaces Dug 3 | . . 1 . . 2 Terrain Destroyed 5 | . . 1 . 2 2 Melee 2 | . . . . . 2 Projectile 3 | . . 1 . 2 . AOE . | . . . . . . Terrain Rammed . | . . . . . . Walls Destroyed . | . . . . . . Machines Disabled . | . . . . . . Actions | -11 -10 -10 -10 -9 -9 --------- Run | Yrd Mat Min Sub Rec Scr Total 6509 | 21 799 793 1728 475 2693 Wait 822 | . 12 419 42 6 343 Move 5375 | 17 678 349 1572 461 2298 Hop 1 | . . . 1 . . Pick Up 54 | . 27 2 13 1 11 Fast Attach 7 | 1 . . 3 . 3 Attach 18 | . 6 1 7 . 4 Detach 11 | . 2 . 3 . 6 Swap 20 | . 13 5 1 1 . Drop 43 | . 5 4 13 1 20 Fire 151 | 3 56 13 73 5 1 Melee 6 | . . . . . 6 Ram . | . . . . . . Kick . | . . . . . . Crush . | . . . . . . Escape Stasis . | . . . . . . Rewire . | . . . . . . Trap 1 | . . . . . 1 Miscellaneous . | . . . . . . Route ------- -11/Scrapyard -10/Materials (discovered 4 exits: [*Mat x3] / [*Min]) -10/Mines (discovered 2 exits: [*Mat] / *Sub) -10/Subcaves (discovered 4 exits: [*Mat x2] / *Rec / *Scr) -9/Recycling (discovered 2 exits: [*Fac] / *Scr) -9/Scraptown (discovered 1 exit: [*Fac]) History --------- Turn | Location | Event 1 | -11/Scrapyard | Discovered new exit (range 3) 32 | -11/Scrapyard | Entered Materials 305 | -10/Materials | Build established: Mutant 519 | -10/Materials | Discovered new exit (range 7) 593 | -10/Materials | Discovered new exit (range 15) 954 | -10/Materials | Central database locked down 1025 | -10/Materials | Discovered new exit (range 16) 1396 | -10/Materials | Discovered new exit (range 11) 1425 | -10/Materials | Entered Mines 1447 | -10/Mines | Learned location of Storage (-9) 1564 | -10/Mines | Assembled infested the area 2199 | -10/Mines | Learned Materials terminal intel 2334 | -10/Mines | Assisted by bots powering up and referring to "LRC-V3" 2434 | -10/Mines | Discovered new exit (range 7) 2487 | -10/Mines | Discovered new exit (range 8) 2504 | -10/Mines | Entered Subcaves 2504 | -10/Subcaves | Accompanied by 3 allies 2505 | -10/Subcaves | Approached by a straggling Scientist 2791 | -10/Subcaves | Visited triangular shrine 2803 | -10/Subcaves | Found Prototype Device 2803 | -10/Subcaves | Identified V3-11A's Pendant 2808 | -10/Subcaves | Befriended Subdweller 2876 | -10/Subcaves | Discovered new exit (range 3) 3447 | -10/Subcaves | Core integrity fell below 50% 3586 | -10/Subcaves | Befriended Subdweller 3591 | -10/Subcaves | Befriended Subdweller 3686 | -10/Subcaves | Befriended Subdweller 3731 | -10/Subcaves | Shifting Twisted Machinery released Scrap Shield 3732 | -10/Subcaves | Shifting Twisted Machinery released Sub. Optics 3857 | -10/Subcaves | Disturbed a concealed Subdweller 3861 | -10/Subcaves | Befriended Subdweller 3896 | -10/Subcaves | Learned location of 1 exit from Materials 3918 | -10/Subcaves | Scientist uncovered a shortcut to Scraptown 4056 | -10/Subcaves | Shifting Twisted Machinery released Sub. Beam Cannon 4064 | -10/Subcaves | Shifting Twisted Machinery released Mak. Light Armor Plating 4201 | -10/Subcaves | Discovered new exit (range 7) 4227 | -10/Subcaves | Visited Clippyterm 4232 | -10/Subcaves | Learned 40 Factory zone layouts 4232 | -10/Subcaves | Learned Factory emergency access door positions 4391 | -10/Subcaves | Befriended Subdweller 4391 | -10/Subcaves | Befriended Subdweller 4606 | -10/Subcaves | Shifting Twisted Machinery released Battle Rifle 4641 | -10/Subcaves | Befriended Subdweller 4661 | -10/Subcaves | Befriended Subdweller 5126 | -10/Subcaves | Befriended Subdweller 5251 | -10/Subcaves | Discovered new exit (range 14) 5278 | -10/Subcaves | Lost 5 allies 5356 | -10/Subcaves | A swath of the cavern ceiling suddenly collapsed 5442 | -10/Subcaves | Visited 4L-MR0's lab 5467 | -10/Subcaves | Found Rainbow Chip 5609 | -10/Subcaves | Entered Recycling 5851 | -9/Recycling | Scanned before Scraplab entrance 6177 | -9/Recycling | Discovered new exit (range 11) 6467 | -9/Recycling | Entered Scraplab 6482 | -9/Recycling | Discovered new exit (range 2) 6484 | -9/Recycling | Entered Scraptown 6697 | -9/Scraptown | Visited Shadow of the Wyrm 6737 | -9/Scraptown | Visited SPCMW 6811 | -9/Scraptown | Heard Great Nut preacher, LISTEN AND RECITE! 6836 | -9/Scraptown | Delivered V3-11A's Pendant to T0-NE2 in exchange for information 7156 | -9/Scraptown | Discovered new exit (range 11) 7181 | -9/Scraptown | Scanned Subdweller tech in exchange for log data 7186 | -9/Scraptown | Learned location of Testing (-2) 7188 | -9/Scraptown | Learned Factory emergency access door positions 7191 | -9/Scraptown | Learned 12 Research zone layouts 7233 | -9/Scraptown | Visited Bundlers 7324 | -9/Scraptown | Visited The Evicted 7405 | -9/Scraptown | Visited UFD Registry 7405 | -9/Scraptown | Registered with UFD as "Phaseslasher" 7427 | -9/Scraptown | Visited Awakened 7468 | -9/Scraptown | Visited Comm Corps 7602 | -9/Scraptown | Visited Chapter 10 7643 | -9/Scraptown | Visited Junk Repository 7688 | -9/Scraptown | Visited Science Testing Area 7737 | -9/Scraptown | Visited Abandonware Association 7770 | -9/Scraptown | Learned abandonware demo "REPAIR.EXE" 7812 | -9/Scraptown | Visited DA-N13 Charitable Foundation 7828 | -9/Scraptown | Found DCF Scrap (29 items) 7868 | -9/Scraptown | Visited Research Penetration Think Tank 7951 | -9/Scraptown | Delivered Scrap Shield to a Scientist 8133 | -9/Scraptown | Visited Botcube Research 8145 | -9/Scraptown | Found Lrg. Botcube 8174 | -9/Scraptown | Visited Science Guys 8305 | -9/Scraptown | Warned about trapping Scraptown 8706 | -9/Scraptown | Found Voltaic Drivehammer 8722 | -9/Scraptown | Lost 5 allies 8940 | -9/Scraptown | System corruption cleaned by C-Scrubber 9428 | -9/Scraptown | Visited Curators Association 10098 | -9/Scraptown | Met Optimus 10098 | -9/Scraptown | Accepted into 0bPrime 10498 | -9/Scraptown | Civil war broke out across Scraptown 10505 | -9/Scraptown | Found MA-1KR's Cyclogen 10528 | -9/Scraptown | Found Deploy-a-Sentry 10585 | -9/Scraptown | Core integrity fell below 20% 10587 | -9/Scraptown | Destroyed by GB-93V(g) with Beamcaster Last Messages --------------- 10503_ Slug penetrates Autobeam Turret. 10503_ Autobeam Turret suffers critical hit (Destroy). 10505_ Autobeam Turret destroyed. 10505_ Slug penetrates 4T-XXD(p). 10505_ Acquired MA-1KR's Cyclogen. 10508_ Slug penetrates 7Z-PEA(r). 10508_ Enclosure breached. 10508_ 4T-XXD(p) destroyed. 10510_ Enclosure breached. 10516_ Acquired Com. Gauss Rifle. 10523_ Enclosure breached. 10528_ Acquired Deploy-a-Sentry. 10551_ Machine disabled. 10567_ Bolt penetrates Enclosure. 10574_ Penetrated by Bolt. 10581_ Bolt penetrates Wall. 10584_ Bolt penetrates Machine. 10585_ Machine disabled. 10585_ Acquired 13 matter. 10587_ Bolt penetrates Machine. Map ----- +----------------------------------------------------+ | ???????????????????????## ##????????????????????? | | ?????????????????????### ?????????????????????? | | ?????????????????????? ?????????????????????? | | ??????????????????????? ?????????????????????? | | ???????????????????????? ?????????????????????? | | ????????????????????????# #?????????????????????? | | ????????????????????????# ######?###????????????? | | ????????????????????????# ## #"###"#????????????? | | ????????????????????????# "#"# " " ####?????????? | | ??????????????########### # "" "#?????????? | | ??????????????# # ##"" ""##?????????? | | ??????????????# # ## #??????????? | | ???########???# # ##"" ""##?????????? | | ???#[*# ![#??## # #" % "#?????????? | | ???# #] !#? ## # ##" ""##?????????? | | ???# # # ## # ##&" "=#??????????? | | ???# ## # ##""j ""#??????????? | | ???# ## # #" j % "#?????????? | | ???#### ########### ##### ##j##"##""###?????????? | | ####### ########### ##### ##h##"###"######??????? | | """"""" """" """""" """" "" "#" "#??????? | | "#" ""#??????? | | % % "## "" "#??????? | | "## "### "#??????? | | =%! "=# "#X ""#??????? | | @* !%[!"### "#??????? | | """""""""""""""""""""""" = ##=%"""" "#??????? | | """""""""""""""""""""""" =%"## ""#??????? | | ##### ################"" [ !"## "#??????? | | ##????????#"" !%= "############??????? | | X"?????????#"" !=="##*[/*=*#?????????? | | "" "" ##????????#"" !!%!"##[*=% *#?????????? | | "" "" X"#??????###"" =[*[=##![![/*#?????????? | | " " ######### #""[!%!jg##!*!!###?????????? | | "" [x!![%j =*=!###?????????? | | "" %!==!%=## ===! #?????????? | | " " ######### #""%!/=![## [% #?????????? | | "" "" ""#??????###""=*%!!"## ] ! #?????????? | | "" "" ##????????#""!%==* #########?????????? | | X"#????????#"" =%[%"#?????????????????? | | ##????????#"" M[ "##########????????? | | ##### ################"" "## " """"#????????? | | """"""""""""""""""""""""" "## ""#????????? | | """"""""""""""""""""""""" "#????????? | | "## ""#????????? | | "## ""#????????? | | "## ""#????????? | | ## """"""#????????? | | #"""""""#????????? | | """"""""" """"""""""" """""" ##########????????? | +----------------------------------------------------+ Best States ------------- Heat Dissipation 25 Energy Generation 10 Energy Capacity 250 Matter Stores 300 Matter Capacity 300 Sight Range 16 Terrain Scan Density 10 Core Shielding 10 Evasion (%) 45 Recoil Reduction 2 Authchip Count 1 Item Schematics ----------------- Lrg. Storage Unit | -10/Materials | Hacked Huge Storage Unit | -9/Recycling | Hacked Hvy. Hammer | -9/Recycling | Hacked Terrain Scan Processor | -9/Recycling | Hacked Robot Schematics ------------------ None Fabricated ------------ Nothing Repaired ---------- Nothing Alien Tech Used ----------------- None Achievements -------------- None Challenges ------------ None Game ------ Seed AccelerationCobblerFrame Manual? 0 Play Time 00:57:33 Cumulative 680.4 hours Start 2025.10.14 @ 22:50:43 End 2025.10.16 @ 20:12:59 Sessions 7 Manual Loads 0 Difficulty Rogue Special Mode None Game No. 310 Rogue 166 Adventurer 144 Explorer 0 Win Type - Total 12 Types 5/1/5/1/0/0/0/0/0/0 Lore% 88 Gallery% 82 Achievement% 73 Wizard Run 0 Options --------- Layout 0 ASCII 0 Keyboard 0 Movement Mouse Keybinds 0 Fullscreen 2 Font 20/SmallcapsGlow Map View 66x50 Zoom Use 0% Tactical HUD 1 Map Filters NONE Filters NONE Steam 1 RUN: 3e334f18-61bc-4f99-8a90-083f095aa07d